bitfinex-derivatives/quotes_BTCF0:USTF0_20241224
["timestamp","ask_amount","ask_price","bid_price","bid_amount"]
[1735050244909,0.3608,96648.0,96635.0,0.00147]
[1735050245112,0.3608,96636.0,96635.0,0.00147]
[1735050245917,0.6608,96636.0,96618.0,0.051804]
[1735050246108,0.3608,96619.0,96618.0,0.051304]
[1735050246327,0.3608,96619.0,96604.0,0.01598743]
[1735050246508,0.3608,96619.0,96611.0,0.051808]
[1735050246715,0.7216,96619.0,96611.0,0.051808]
[1735050247305,0.73818794,96619.0,96618.0,0.009]
[1735050247919,0.73818794,96619.0,96611.0,0.060808]
[1735050248118,0.73818794,96619.0,96618.0,0.005]
[1735050248922,0.051804,96618.0,96611.0,0.014]
[1735050249116,0.73870795,96619.0,96611.0,0.014]
[1735050249421,0.051807,96613.0,96611.0,0.014]
[1735050249625,0.051807,96613.0,96611.0,0.005]
[1735050249919,0.351807,96613.0,96600.0,0.10011734]
[1735050250125,0.051815,96599.0,96586.0,0.01584396]
[1735050250424,0.3608,96587.0,96586.0,0.06766496]
[1735050250612,0.3608,96587.0,96586.0,0.051821]
[1735050250813,0.3608,96596.0,96595.0,0.051816]
[1735050251208,0.36089169,96596.0,96595.0,0.051816]
[1735050252020,0.36089169,96596.0,96586.0,0.11083997]
[1735050252214,0.36089169,96596.0,96595.0,0.002]
[1735050253215,0.712616,96596.0,96560.0,0.3608]
[1735050253522,0.3608,96573.0,96567.0,0.051831]
[1735050253725,7.492e-05,96572.0,96567.0,0.051831]
[1735050254226,7.492e-05,96572.0,96568.0,0.05183]
[1735050254620,7.492e-05,96572.0,96571.0,0.051829]
[1735050255519,0.00107492,96572.0,96571.0,0.051829]
[1735050256020,0.3608,96573.0,96571.0,0.051829]
[1735050256226,0.051813,96602.0,96573.0,0.051828]
[1735050256526,0.051814,96600.0,96585.0,0.051822]
[1735050256923,0.051815,96599.0,96585.0,0.051822]
[1735050257114,6.026e-05,96595.0,96585.0,0.051822]
[1735050257728,6.026e-05,96595.0,96584.0,0.3608]
[1735050258620,6.026e-05,96595.0,96585.0,0.003]
[1735050258928,0.051818,96593.0,96585.0,0.008]
[1735050259427,6.026e-05,96595.0,96584.0,0.3698]
[1735050259428,0.00106026,96595.0,96584.0,0.3698]
[1735050259634,0.001,96595.0,96584.0,0.3698]
[1735050259824,0.051822,96586.0,96584.0,0.3698]
[1735050260138,6.026e-05,96585.0,96584.0,0.3698]
[1735050260619,0.051822,96586.0,96584.0,0.3698]
[1735050260923,0.051828,96574.0,96572.0,0.3608]
[1735050261124,6.026e-05,96573.0,96572.0,0.3608]
[1735050262318,6.026e-05,96573.0,96572.0,0.3658]
[1735050263815,6.026e-05,96573.0,96572.0,0.3678]
[1735050268002,6.026e-05,96573.0,96572.0,0.007]
[1735050271936,0.3608,96600.0,96572.0,0.007]
[1735050272203,0.00052001,96613.0,96611.0,0.051807]
[1735050272606,0.15483911,96627.0,96626.0,0.0518]
[1735050272792,0.15483911,96627.0,96626.0,0.4126]
[1735050273102,0.01476864,96638.0,96626.0,0.4126]
[1735050273405,0.051793,96639.0,96628.0,0.10283997]
[1735050273592,0.67972,96648.0,96638.0,0.3608]
[1735050273794,0.15483911,96652.0,96638.0,0.46363997]
[1735050273999,0.15483911,96652.0,96648.0,0.3608]
[1735050274201,0.051781,96661.0,96648.0,0.3608]
[1735050274404,0.051781,96661.0,96660.0,0.3608]
[1735050275400,0.060781,96661.0,96660.0,0.3608]
[1735050276003,0.060781,96661.0,96660.0,0.3618]
[1735050276905,0.067781,96661.0,96660.0,0.3628]
[1735050277300,0.067781,96661.0,96660.0,0.002]
[1735050278007,1.567781,96661.0,96660.0,0.002]
[1735050279405,0.051787,96649.0,96648.0,0.3608]
[1735050280424,0.051792,96640.0,96637.0,0.36184]
[1735050280607,0.051792,96640.0,96637.0,0.3608]
[1735050281514,0.060792,96640.0,96637.0,0.3618]
[1735050282197,0.051793,96639.0,96637.0,0.3618]
[1735050282904,0.051793,96639.0,96637.0,0.3628]
[1735050283102,0.051793,96639.0,96637.0,0.002]
[1735050283598,0.051793,96639.0,96637.0,0.001]
[1735050283798,0.060793,96639.0,96637.0,0.002]
[1735050284114,0.060793,96639.0,96637.0,0.001]
[1735050284115,0.069793,96639.0,96637.0,0.001]
[1735050289808,0.051795,96636.0,96615.0,0.3608]
[1735050290124,0.051805,96617.0,96615.0,0.3608]
[1735050290309,0.3608,96630.0,96607.0,0.3608]
[1735050290506,0.051809,96608.0,96607.0,0.3608]
[1735050291817,0.057809,96608.0,96607.0,0.3608]
[1735050292136,0.051816,96597.0,96590.0,0.15433603]
[1735050293915,0.005,96608.0,96593.0,0.3608]
[1735050294108,0.00056001,96627.0,96606.0,0.05181]
[1735050294310,0.15483911,96637.0,96623.0,0.3608]
[1735050294507,0.051795,96635.0,96623.0,0.3608]
[1735050294708,0.051794,96636.0,96623.0,0.3608]
[1735050295027,0.01361579,96636.0,96623.0,0.3608]
[1735050295317,0.051797,96632.0,96623.0,0.3608]
[1735050295717,0.009,96624.0,96623.0,0.3608]
[1735050297205,0.005,96624.0,96623.0,0.3608]
[1735050297411,0.005,96624.0,96623.0,0.3618]
[1735050297812,0.005,96624.0,96623.0,0.3608]
[1735050298017,0.014,96624.0,96623.0,0.3618]
[1735050298612,0.02776525,96624.0,96623.0,0.3618]
[1735050298817,0.014,96624.0,96623.0,0.3618]
[1735050300219,0.014,96624.0,96623.0,0.001]
[1735050303217,0.09240169,96629.0,96628.0,0.051799]
[1735050303428,0.15483911,96640.0,96628.0,0.412599]
[1735050303620,0.18581986,96645.0,96639.0,0.412593]
[1735050303921,0.18581986,96645.0,96644.0,0.41259]
[1735050304619,0.21678984,96657.0,96654.0,0.051785]
[1735050304816,0.01414211,96671.0,96654.0,0.051785]
[1735050304817,0.051776,96671.0,96661.0,0.051781]
[1735050305020,0.051776,96671.0,96663.0,0.3608]
[1735050305211,0.051778,96667.0,96663.0,0.3608]
[1735050305423,0.051779,96665.0,96663.0,0.3608]
[1735050306212,0.051779,96665.0,96663.0,0.3618]
[1735050306918,0.005,96665.0,96663.0,0.3608]
[1735050307424,0.005,96665.0,96663.0,0.3618]
[1735050307720,0.005,96665.0,96663.0,0.41358]
[1735050308124,0.009,96665.0,96663.0,0.41358]
[1735050308622,0.051779,96664.0,96663.0,0.3618]
[1735050308819,0.051779,96664.0,96663.0,0.001]
[1735050309215,0.412579,96664.0,96663.0,0.001]
[1735050309528,0.051789,96646.0,96639.0,0.17963501]
[1735050309718,0.051792,96640.0,96639.0,0.17963501]
[1735050310114,0.051794,96638.0,96633.0,0.3608]
[1735050310610,0.051795,96635.0,96633.0,0.3608]
[1735050311015,0.0518,96625.0,96624.0,0.18118715]
[1735050311313,0.4126,96625.0,96624.0,0.14010031]
[1735050311515,0.051805,96617.0,96610.0,0.15429891]
[1735050311723,0.051806,96615.0,96610.0,0.15429891]
[1735050312064,0.051806,96615.0,96614.0,0.3608]
[1735050312319,0.1192,96634.0,96614.0,0.3608]
[1735050312517,0.1156,96633.0,96614.0,0.3608]
[1735050312717,0.002,96617.0,96614.0,0.3608]
[1735050313323,0.002,96615.0,96614.0,0.3608]
[1735050315020,0.003,96617.0,96614.0,0.3618]
[1735050315721,0.051804,96619.0,96614.0,0.3618]
[1735050316722,0.051804,96619.0,96614.0,0.3608]
[1735050316932,0.001,96617.0,96615.0,0.051805]
[1735050318331,0.1147,96646.0,96614.0,0.3608]
[1735050318530,0.002,96619.0,96618.0,0.051804]
[1735050319019,0.001,96617.0,96616.0,0.412605]
[1735050319451,0.3608,96644.0,96616.0,0.712605]
[1735050319622,0.051794,96637.0,96631.0,0.3608]
[1735050320027,0.051795,96636.0,96635.0,0.051795]
[1735050320219,0.3608,96644.0,96618.0,0.005]
[1735050320415,0.051803,96620.0,96618.0,0.005]
[1735050321719,0.051805,96617.0,96616.0,0.36884]
[1735050321918,0.3608,96633.0,96618.0,0.051804]
[1735050322118,0.3608,96633.0,96620.0,0.15429891]
[1735050322119,0.051802,96621.0,96620.0,0.15429891]
[1735050322321,0.051804,96618.0,96616.0,0.36184]
[1735050322524,0.051804,96618.0,96616.0,0.3608]
[1735050323022,0.1156,96617.0,96616.0,0.3618]
[1735050323616,0.1156,96617.0,96608.0,0.3608]
[1735050323617,0.051806,96614.0,96608.0,0.3608]
[1735050324121,0.1156,96617.0,96608.0,0.3608]
[1735050324327,0.1156,96617.0,96609.0,0.051809]
[1735050324728,0.1156,96617.0,96608.0,0.3608]
[1735050324925,0.1156,96617.0,96613.0,0.051806]
[1735050325123,0.004,96618.0,96608.0,0.3608]
[1735050325124,0.001,96618.0,96616.0,0.051805]
[1735050325425,0.004,96617.0,96616.0,0.051805]
[1735050326230,0.004,96617.0,96608.0,0.3608]
[1735050326530,0.001,96618.0,96612.0,0.051807]
[1735050327425,0.001,96618.0,96608.0,0.3608]
[1735050327730,0.051808,96612.0,96608.0,0.3608]
[1735050328123,0.005,96617.0,96608.0,0.3608]
[1735050328328,0.005,96617.0,96616.0,0.3608]
[1735050328725,0.051804,96618.0,96616.0,0.3608]
[1735050329528,0.051806,96615.0,96608.0,0.413649]
[1735050329718,0.051806,96615.0,96608.0,0.412609]
[1735050330123,0.051807,96613.0,96608.0,0.3608]
[1735050331838,0.051807,96613.0,96608.0,0.412609]
[1735050332139,0.005,96618.0,96610.0,0.051808]
[1735050332140,0.001,96618.0,96610.0,0.051808]
[1735050332330,0.051804,96618.0,96616.0,0.3608]
[1735050334936,0.052804,96618.0,96616.0,0.3608]
[1735050336036,0.056804,96618.0,96616.0,0.3608]
[1735050338035,0.051809,96609.0,96608.0,0.00104]
[1735050338336,0.051815,96597.0,96594.0,0.01230826]
[1735050338525,0.3608,96611.0,96595.0,0.3608]
[1735050338726,0.051807,96613.0,96603.0,0.412612]
[1735050338935,0.051807,96613.0,96604.0,0.051811]
[1735050339137,0.051808,96612.0,96604.0,0.051811]
[1735050339332,0.002,96618.0,96604.0,0.051811]
[1735050339565,0.002,96618.0,96608.0,0.10296461]
[1735050339566,0.051808,96611.0,96608.0,0.10296461]
[1735050339735,0.18555522,96612.0,96603.0,0.3608]
[1735050339927,0.051808,96611.0,96603.0,0.3608]
[1735050340136,0.051811,96606.0,96603.0,0.3608]
[1735050340541,0.051811,96606.0,96604.0,0.001]
[1735050340839,0.1551314,96611.0,96605.0,0.051811]
[1735050341340,0.1551314,96611.0,96606.0,0.01107781]
[1735050341541,0.1551314,96611.0,96607.0,0.01107781]
[1735050341840,0.1551314,96611.0,96605.0,0.051811]
[1735050342339,0.1551314,96616.0,96604.0,0.36284]
[1735050342537,0.1551314,96616.0,96613.0,0.3608]
[1735050342748,0.051806,96615.0,96613.0,0.3608]
[1735050343543,0.2069374,96615.0,96613.0,0.3608]
[1735050344134,0.2099374,96615.0,96613.0,0.3608]
[1735050345037,0.051807,96613.0,96608.0,0.3608]
[1735050345436,0.18555522,96622.0,96608.0,0.7216]
[1735050345636,0.05179,96645.0,96636.0,0.051794]
[1735050345945,0.3608,96662.0,96643.0,0.051791]
[1735050346141,0.05178,96663.0,96643.0,0.051791]
[1735050346441,0.05178,96663.0,96653.0,0.051785]
[1735050346745,0.0642055,96663.0,96660.0,0.3608]
[1735050347139,0.05178,96663.0,96660.0,0.3608]
[1735050347847,0.1139,96672.0,96660.0,0.3608]
[1735050348175,0.2408,96685.0,96670.0,0.3608]
[1735050348341,0.051775,96673.0,96670.0,0.3608]
[1735050348950,0.3624,96685.0,96670.0,0.3608]
[1735050349553,0.3624,96685.0,96670.0,0.3618]
[1735050349554,0.007,96673.0,96670.0,0.3618]
[1735050349848,0.016,96673.0,96670.0,0.3628]
[1735050350058,0.016,96673.0,96671.0,0.051775]
[1735050351054,0.00132437,96679.0,96671.0,0.051775]
[1735050351248,0.00132437,96679.0,96678.0,0.3608]
[1735050352466,0.15176,96700.0,96689.0,0.051766]
[1735050352651,0.11281716,96700.0,96690.0,0.10296461]
[1735050352960,0.11281716,96700.0,96698.0,0.3608]
[1735050353256,0.11281716,96700.0,96699.0,0.051761]
[1735050353450,0.1,96700.0,96699.0,0.051761]
[1735050353950,0.103,96700.0,96699.0,0.051761]
[1735050354965,0.106,96700.0,96699.0,0.051761]
[1735050355557,0.007,96700.0,96699.0,0.001]
[1735050355757,0.007,96700.0,96699.0,0.052761]
[1735050356063,0.051749,96722.0,96713.0,0.051753]
[1735050356253,0.051749,96722.0,96721.0,0.3608]
[1735050357057,0.1206,96723.0,96721.0,0.3608]
[1735050357266,0.05174,96737.0,96721.0,0.412548]
[1735050357454,0.051741,96736.0,96729.0,0.3608]
[1735050357854,0.01265747,96731.0,96729.0,0.3608]
[1735050358057,0.2399,96739.0,96729.0,0.3608]
[1735050358255,0.2399,96739.0,96729.0,0.51492353]
[1735050358468,0.2399,96739.0,96738.0,0.3608]
[1735050359058,0.25261531,96739.0,96738.0,0.3608]
[1735050359466,0.26161531,96739.0,96738.0,0.3608]
[1735050359870,0.14161531,96739.0,96738.0,0.3618]
[1735050360671,0.1289,96739.0,96738.0,0.3618]
[1735050360870,0.1199,96739.0,96738.0,0.3618]
[1735050361169,0.051727,96763.0,96745.0,0.051736]
[1735050361369,0.051727,96763.0,96738.0,0.3628]
[1735050361370,0.051727,96763.0,96751.0,0.3608]
[1735050362066,0.051727,96763.0,96752.0,0.051732]
[1735050362461,0.051727,96763.0,96760.0,0.3608]
[1735050362662,0.066727,96763.0,96760.0,0.3608]
[1735050363062,0.051727,96761.0,96760.0,0.3608]
[1735050363262,0.006,96763.0,96760.0,0.3608]
[1735050363463,0.014,96763.0,96760.0,0.3608]
[1735050363860,0.006,96763.0,96760.0,0.3608]
[1735050364060,0.014,96763.0,96760.0,0.3618]
[1735050364766,0.051727,96761.0,96760.0,0.3618]
[1735050366973,0.051727,96761.0,96760.0,0.3608]
[1735050367185,0.054727,96761.0,96760.0,0.3618]
[1735050367365,0.058727,96761.0,96760.0,0.3618]
[1735050367767,0.051737,96743.0,96742.0,0.3608]
[1735050367966,0.051737,96743.0,96742.0,0.7216]
[1735050368868,0.3608,96749.0,96734.0,0.3608]
[1735050369167,0.1164,96742.0,96739.0,0.15412353]
[1735050369365,0.1164,96742.0,96734.0,0.3608]
[1735050369572,0.051741,96735.0,96734.0,0.3608]
[1735050371073,0.06450773,96735.0,96734.0,0.3608]
[1735050371273,0.051747,96724.0,96721.0,0.00196083]
[1735050371574,0.051748,96722.0,96721.0,0.00196083]
[1735050371768,0.051748,96722.0,96721.0,0.36276083]
[1735050372978,0.053748,96722.0,96721.0,0.36276083]
[1735050373372,0.002,96722.0,96721.0,0.36276083]
[1735050373680,0.3608,96764.0,96724.0,0.051747]
[1735050373876,0.00060001,96760.0,96756.0,0.3608]
[1735050374076,0.05172,96775.0,96756.0,0.3608]
[1735050374276,0.051718,96779.0,96768.0,0.051723]
[1735050374663,0.37313326,96782.0,96777.0,0.051719]
[1735050374867,0.3608,96782.0,96781.0,0.051717]
[1735050375173,4.037e-05,96790.0,96780.0,0.051717]
[1735050375375,4.037e-05,96790.0,96777.0,0.3608]
[1735050375376,4.037e-05,96790.0,96784.0,0.051715]
[1735050375568,4.037e-05,96790.0,96788.0,0.051713]
[1735050375875,4.037e-05,96790.0,96787.0,0.3608]
[1735050376077,0.051713,96789.0,96787.0,0.3608]
[1735050377479,0.00604037,96790.0,96787.0,0.3608]
[1735050377783,0.009,96789.0,96787.0,0.3618]
[1735050378375,0.060713,96789.0,96787.0,0.3618]
[1735050378577,0.057713,96789.0,96787.0,0.3618]
[1735050379375,0.00304037,96790.0,96787.0,0.3608]
[1735050379675,0.00304037,96790.0,96787.0,0.3618]
[1735050379676,0.051713,96788.0,96787.0,0.3618]
[1735050380064,0.005,96789.0,96787.0,0.3608]
[1735050380678,0.003,96789.0,96787.0,0.3618]
[1735050380875,0.00604037,96790.0,96787.0,0.3618]
[1735050381773,4.037e-05,96790.0,96787.0,0.3608]
[1735050381993,0.002,96789.0,96787.0,0.3608]
[1735050383380,0.00204037,96790.0,96787.0,0.3608]
[1735050384086,0.051713,96788.0,96787.0,0.3608]
[1735050386466,0.052713,96788.0,96787.0,0.3608]
[1735050386668,0.001,96788.0,96787.0,0.3608]
[1735050386871,0.004,96788.0,96787.0,0.3608]
[1735050387273,0.003,96788.0,96787.0,0.3608]
[1735050387875,0.051713,96789.0,96787.0,0.3608]
[1735050388077,0.003,96788.0,96777.0,0.36184]
[1735050388301,0.003,96788.0,96778.0,0.00961821]
[1735050388302,0.051714,96787.0,96778.0,0.00961821]
[1735050388482,0.003,96788.0,96777.0,0.3608]
[1735050388789,0.051715,96785.0,96777.0,0.3608]
[1735050389888,0.002,96788.0,96777.0,0.3608]
[1735050390422,0.3608,96780.0,96777.0,0.002]
[1735050390579,0.3608,96780.0,96755.0,0.3608]
[1735050390580,0.051719,96778.0,96755.0,0.3608]
[1735050390775,0.05173,96756.0,96755.0,0.3608]
[1735050390977,0.3608,96766.0,96757.0,0.24028689]
[1735050391285,0.051729,96758.0,96757.0,0.24028689]
[1735050391485,0.412529,96758.0,96757.0,0.24028689]
[1735050392517,0.412529,96758.0,96748.0,0.15588434]
[1735050392684,0.412529,96758.0,96748.0,0.15484434]
[1735050392879,0.05173,96757.0,96755.0,0.002]
[1735050393074,0.05173,96757.0,96755.0,0.003]
[1735050393481,0.05173,96757.0,96755.0,0.001]
[1735050393678,0.05173,96757.0,96748.0,0.0005]
[1735050393679,0.05173,96757.0,96748.0,0.0075]
[1735050393878,0.05173,96757.0,96749.0,0.00962659]
[1735050394078,0.05173,96757.0,96750.0,0.00962659]
[1735050394287,0.05173,96757.0,96756.0,0.3608]
[1735050394878,0.1169,96769.0,96756.0,0.3608]
[1735050395181,0.3608,96782.0,96756.0,0.3608]
[1735050395182,0.05172,96775.0,96768.0,0.3608]
[1735050397180,0.228,96779.0,96768.0,0.412524]
[1735050397495,0.005,96775.0,96768.0,0.413524]
[1735050397975,0.005,96775.0,96768.0,0.3608]
[1735050398177,0.006,96775.0,96768.0,0.3608]
[1735050398379,0.051723,96770.0,96768.0,0.3608]
[1735050398912,0.051724,96767.0,96748.0,0.24028689]
[1735050399081,0.051731,96754.0,96748.0,0.24028689]
[1735050399282,0.3608,96769.0,96748.0,0.24028689]
[1735050399479,0.051711,96792.0,96764.0,0.3608]
[1735050399480,0.10261034,96770.0,96764.0,0.3608]
[1735050399680,0.051723,96771.0,96766.0,0.3608]
[1735050399884,0.051721,96774.0,96766.0,0.3608]
[1735050400188,0.051721,96774.0,96768.0,0.002]
[1735050400383,0.051722,96772.0,96768.0,0.002]
[1735050400784,0.051722,96772.0,96766.0,0.3608]
[1735050401029,0.001,96771.0,96766.0,0.3608]
[1735050401590,0.01190872,96775.0,96766.0,0.3608]
[1735050401792,0.051724,96768.0,96766.0,0.3608]
[1735050402491,0.05172,96776.0,96766.0,0.412525]
[1735050402690,0.05172,96776.0,96768.0,0.001]
[1735050403482,0.05172,96776.0,96766.0,0.3618]
[1735050403680,0.05172,96776.0,96774.0,0.3608]
[1735050404588,0.12942837,96779.0,96774.0,0.3608]
[1735050405290,0.003,96776.0,96774.0,0.3608]
[1735050405795,0.001,96776.0,96774.0,0.3608]
[1735050407297,0.05172,96776.0,96774.0,0.3608]
[1735050407597,0.05572,96776.0,96774.0,0.3608]
[1735050407892,0.3608,96775.0,96753.0,0.3608]
[1735050408092,0.051727,96762.0,96754.0,0.00954921]
[1735050408295,0.051727,96762.0,96755.0,0.00954921]
[1735050408593,0.051727,96762.0,96756.0,0.00954921]
[1735050408795,0.3608,96767.0,96757.0,0.00954921]
[1735050408796,0.10261034,96766.0,96757.0,0.00954921]
[1735050408996,0.22484866,96766.0,96753.0,0.3608]
[1735050409192,0.22484866,96766.0,96754.0,0.00956078]
[1735050409401,0.05173,96757.0,96755.0,0.00956078]
[1735050409598,0.05173,96757.0,96756.0,0.00956078]
[1735050409796,0.05173,96757.0,96756.0,0.01156078]
[1735050410201,0.05173,96757.0,96756.0,0.002]
[1735050410539,0.05173,96757.0,96755.0,0.002]
[1735050410993,0.05173,96757.0,96756.0,0.001]
[1735050411991,0.05173,96757.0,96755.0,0.003]
[1735050412188,0.05173,96757.0,96756.0,0.001]
[1735050413098,0.05173,96757.0,96755.0,0.001]
[1735050413291,0.05173,96757.0,96755.0,0.003]
[1735050414189,0.05173,96757.0,96756.0,0.001]
[1735050414801,0.05173,96757.0,96755.0,0.002]
[1735050414999,0.05173,96757.0,96756.0,0.001]
[1735050415503,0.05173,96757.0,96756.0,0.002]
[1735050415898,0.15360715,96763.0,96756.0,0.001]
[1735050416098,0.051727,96762.0,96756.0,0.001]
[1735050416303,0.15360715,96763.0,96756.0,0.001]
[1735050416504,0.051729,96758.0,96756.0,0.001]
[1735050416807,0.051729,96758.0,96756.0,0.002]
[1735050417801,0.051729,96758.0,96756.0,0.001]
[1735050418008,0.051729,96758.0,96756.0,0.002]
[1735050419605,0.20533615,96758.0,96756.0,0.002]
[1735050420903,0.05030434,96757.0,96756.0,0.002]
[1735050422603,0.23338747,96761.0,96756.0,0.002]
[1735050424238,0.05173,96757.0,96756.0,0.002]
[1735050426708,0.05173,96757.0,96756.0,0.001]
[1735050426912,0.05173,96757.0,96756.0,0.002]
[1735050428311,0.05173,96757.0,96744.0,0.3608]
[1735050428508,0.051736,96745.0,96744.0,0.3608]
[1735050428712,0.10261034,96754.0,96736.0,0.3608]
[1735050428713,0.3608,96752.0,96736.0,0.3608]
[1735050428915,0.05174,96737.0,96736.0,0.3608]
[1735050429418,0.3608,96752.0,96736.0,0.3608]
[1735050429812,0.05174,96737.0,96736.0,0.3608]
[1735050430313,0.05174,96737.0,96736.0,0.3668]
[1735050430512,0.15491472,96743.0,96736.0,0.3668]
[1735050430711,0.15491472,96743.0,96737.0,0.05174]
[1735050430911,0.20665172,96743.0,96737.0,0.05174]
[1735050431112,0.15491472,96743.0,96737.0,0.05174]
[1735050431308,0.15491472,96743.0,96736.0,0.37652]
[1735050431510,0.051739,96739.0,96736.0,0.3758]
[1735050431706,0.05174,96738.0,96736.0,0.3758]
[1735050433121,0.05174,96738.0,96737.0,0.009]
[1735050433322,0.15491472,96744.0,96737.0,0.009]
[1735050433620,0.18308313,96753.0,96743.0,0.412537]
[1735050433916,0.1174,96779.0,96754.0,0.051731]
[1735050434109,0.28933184,96783.0,96781.0,0.051716]
[1735050434511,0.21432994,96784.0,96778.0,0.3608]
[1735050434710,0.21432994,96784.0,96782.0,0.051716]
[1735050435718,0.21432994,96784.0,96783.0,0.00962919]
[1735050436020,4.037e-05,96790.0,96789.0,0.051713]
[1735050436318,0.2,96800.0,96790.0,0.051712]
[1735050436514,0.2,96800.0,96789.0,0.3608]
[1735050436515,0.251707,96800.0,96799.0,0.3608]
[1735050436714,0.2,96800.0,96789.0,0.412512]
[1735050436920,0.05171,96795.0,96790.0,0.051712]
[1735050437320,0.05171,96795.0,96791.0,0.051711]
[1735050438214,0.205,96800.0,96791.0,0.051711]
[1735050438515,0.051711,96793.0,96791.0,0.052711]
[1735050438710,0.051711,96793.0,96791.0,0.001]
[1735050440221,0.051711,96793.0,96792.0,0.051711]
[1735050440423,0.053711,96793.0,96792.0,0.051711]
[1735050441015,0.007,96793.0,96792.0,0.051711]
[1735050441422,0.002,96793.0,96792.0,0.051711]
[1735050441732,0.005,96793.0,96792.0,0.001]
[1735050441935,0.007,96793.0,96792.0,0.001]
[1735050450130,0.2,96800.0,96792.0,0.3618]
[1735050450331,0.1,96800.0,96799.0,0.412507]
[1735050450526,0.051683,96845.0,96799.0,0.412507]
[1735050450527,0.20491062,96866.0,96837.0,0.3608]
[1735050450735,1.5,96896.0,96865.0,0.3608]
[1735050450922,0.162455,96897.0,96881.0,0.3608]
[1735050451123,0.00052001,96896.0,96889.0,0.3608]
[1735050451521,0.7017653,96890.0,96889.0,0.3608]
[1735050451743,0.55741196,96890.0,96889.0,0.412459]
[1735050452230,0.0060404,96890.0,96889.0,0.3608]
[1735050452430,0.56341196,96890.0,96889.0,0.3608]
[1735050453339,0.56441196,96890.0,96889.0,0.3618]
[1735050453729,0.3608,96896.0,96870.0,0.3608]
[1735050453933,0.3608,96897.0,96860.0,0.1535728]
[1735050453934,0.3608,96874.0,96860.0,0.1535728]
[1735050454128,0.3608,96887.0,96864.0,0.1535728]
[1735050454332,0.01292893,96898.0,96896.0,0.051655]
[1735050455544,0.3608,96937.0,96919.0,0.051643]
[1735050455741,0.3608,96937.0,96912.0,0.3608]
[1735050456036,0.051639,96927.0,96912.0,0.412447]
[1735050456239,0.051639,96927.0,96922.0,0.3608]
[1735050456423,0.06270987,96926.0,96912.0,0.36172]
[1735050456626,0.06270987,96926.0,96912.0,0.3608]
[1735050457033,0.3608,96929.0,96922.0,0.3608]
[1735050457423,0.06270987,96928.0,96922.0,0.3608]
[1735050458342,0.3608,96929.0,96922.0,0.3608]
[1735050458733,0.05164,96926.0,96922.0,0.3608]
[1735050459337,0.1064,96925.0,96912.0,0.36272]
[1735050459535,0.3608,96919.0,96912.0,0.3608]
[1735050459837,0.3608,96919.0,96903.0,0.3608]
[1735050461046,0.412443,96919.0,96903.0,0.3608]
[1735050461229,0.3608,96919.0,96910.0,0.051648]
[1735050461435,0.3608,96919.0,96903.0,0.3608]
[1735050461436,0.002,96919.0,96912.0,0.001]
[1735050462939,0.001,96919.0,96903.0,0.3608]
[1735050463234,0.001,96919.0,96914.0,0.3608]
[1735050463436,0.001,96919.0,96904.0,0.051651]
[1735050463642,0.001,96919.0,96912.0,0.001]
[1735050464149,0.3608,96921.0,96903.0,0.3628]
[1735050464408,0.3608,96921.0,96914.0,0.3608]
[1735050465539,0.412442,96921.0,96914.0,0.3608]
[1735050466048,0.3608,96921.0,96914.0,0.3608]
[1735050466469,0.3618,96921.0,96914.0,0.3608]
[1735050466742,0.051644,96918.0,96914.0,0.3608]
[1735050466941,0.051645,96916.0,96914.0,0.3638]
[1735050467347,0.051645,96916.0,96914.0,0.003]
[1735050467844,0.051645,96916.0,96914.0,0.001]
[1735050468434,0.051645,96916.0,96893.0,0.36234802]
[1735050468639,0.051655,96896.0,96893.0,0.00154802]
[1735050469547,0.051649,96909.0,96893.0,0.00154802]
[1735050469750,0.051654,96900.0,96893.0,0.00254802]
[1735050470237,0.051656,96895.0,96893.0,0.00154802]
[1735050470839,0.051658,96892.0,96891.0,0.3608]
[1735050471040,0.051662,96884.0,96883.0,0.00093]
[1735050471243,0.051671,96867.0,96865.0,0.3608]
[1735050471741,0.051663,96882.0,96866.0,0.051671]
[1735050471942,0.051664,96881.0,96866.0,0.051671]
[1735050472144,0.051664,96880.0,96867.0,0.051671]
[1735050472336,0.1065,96883.0,96873.0,0.3608]
[1735050472745,0.051667,96875.0,96873.0,0.3608]
[1735050473141,0.20890694,96883.0,96863.0,0.3608]
[1735050473343,0.05167,96869.0,96867.0,0.009]
[1735050473781,0.051667,96876.0,96866.0,0.051671]
[1735050473944,0.051667,96876.0,96873.0,0.008]
[1735050475543,0.051667,96875.0,96871.0,0.3608]
[1735050475739,0.051668,96873.0,96871.0,0.3608]
[1735050475938,0.05167,96868.0,96867.0,0.016]
[1735050476141,0.05167,96868.0,96867.0,0.007]
[1735050476338,0.3608,96872.0,96851.0,0.3608]
[1735050476339,0.051674,96861.0,96851.0,0.3608]
[1735050476983,0.2218,96882.0,96861.0,0.051674]
[1735050476984,0.051671,96868.0,96861.0,0.051674]
[1735050477142,0.051671,96868.0,96867.0,0.007]
[1735050477339,0.10240694,96880.0,96867.0,0.007]
[1735050477648,0.051668,96872.0,96867.0,0.007]
[1735050478150,0.051668,96872.0,96869.0,0.3608]
[1735050478338,0.3608,96884.0,96869.0,0.3608]
[1735050478543,0.051658,96891.0,96883.0,0.051662]
[1735050478742,0.051658,96891.0,96882.0,0.3608]
[1735050478951,0.051658,96891.0,96886.0,0.05166]
[1735050479944,0.1141,96899.0,96883.0,0.003]
[1735050480152,0.051662,96885.0,96884.0,0.01102106]